bitfinex/quotes_SOLUSD_20240624
["timestamp","ask_amount","ask_price","bid_price","bid_amount"]
[1719249333681,30.65,128.65,128.45,47.06]
[1719249333988,7.7738,128.64,128.46,69.27055181]
[1719249334189,30.65,128.65,128.46,69.27055181]
[1719249334392,19.4273,128.69,128.47,2.21037974]
[1719249334699,7.7738,128.64,128.5,47.06]
[1719249334913,19.4273,128.69,128.51,22.54969174]
[1719249335083,30.65,128.66,128.51,2.20969174]
[1719249335284,50.0817,128.66,128.51,2.20969174]
[1719249335491,7.7735,128.65,128.46,20.0]
[1719249335811,7.7775,128.58,128.47,2.38037974]
[1719249335985,38.4254,128.62,128.48,2.2102077]
[1719249336185,30.65,128.62,128.49,0.17]
[1719249336400,0.17,128.61,128.48,22.2102077]
[1719249336597,7.7772,128.58,128.48,2.2102077]
[1719249336804,19.6086,128.61,128.48,2.2102077]
[1719249337111,7.9458,128.61,128.48,2.2102077]
[1719249337298,0.17,128.6,128.48,2.2102077]
[1719249337608,7.7778,128.58,128.43,47.06]
[1719249337795,7.7781,128.57,128.44,2.21089602]
[1719249337999,30.65,128.62,128.44,2.21089602]
[1719249338204,30.65,128.66,128.44,2.21089602]
[1719249338407,7.7753,128.62,128.45,47.06]
[1719249338717,30.65,128.62,128.45,47.06]
[1719249338889,7.7757,128.61,128.46,2.21055181]
[1719249339093,7.7741,128.64,128.46,2.21055181]
[1719249339302,105.1454,128.7,128.47,55.0137]
[1719249339605,19.4277,128.69,128.49,47.06]
[1719249339807,19.4277,128.69,128.5,67.23]
[1719249340001,7.7735,128.65,128.51,2.20969174]
[1719249340206,74.4954,128.7,128.52,0.17]
[1719249340207,35.645,128.7,128.52,0.17]
[1719249340399,35.645,128.7,128.52,0.34]
[1719249340595,4.995,128.7,128.53,47.06]
[1719249340905,4.995,128.7,128.52,0.34]
[1719249340906,12.7653,128.7,128.55,47.06]
[1719249341082,4.995,128.7,128.56,67.4]
[1719249341391,7.7723,128.67,128.57,20.0]
[1719249341705,4.995,128.7,128.56,0.34]
[1719249341905,4.995,128.7,128.55,0.17]
[1719249341906,7.7729,128.66,128.55,0.17]
[1719249342105,4.995,128.7,128.55,0.17]
[1719249342106,7.771,128.69,128.56,2.20883234]
[1719249342314,4.995,128.7,128.57,0.34]
[1719249342486,4.995,128.7,128.57,47.4]
[1719249342698,4.995,128.7,128.59,47.06]
[1719249342991,4.995,128.7,128.61,47.06]
[1719249343189,4.995,128.7,128.62,2.54780194]
[1719249343388,4.995,128.7,128.62,2.37780194]
[1719249343810,4.995,128.7,128.63,0.17]
[1719249344492,4.995,128.7,128.62,2.37780194]
[1719249344713,4.995,128.7,128.62,2.20780194]
[1719249345692,4.995,128.7,128.63,2.2076303]
[1719249345891,4.995,128.7,128.63,1.7076303]
[1719249346402,12.7651,128.7,128.62,0.17]
[1719249346603,12.7651,128.7,128.58,66.66]
[1719249346815,12.7651,128.7,128.59,0.17]
[1719249346816,4.995,128.7,128.59,0.17]
[1719249347319,4.995,128.7,128.6,2.2081453]
[1719249347614,4.995,128.7,128.61,0.17]
[1719249347819,4.995,128.7,128.6,48.8681453]
[1719249348491,4.995,128.7,128.61,68.8679736]
[1719249348797,4.995,128.7,128.62,2.20780194]
[1719249349288,4.995,128.7,128.63,0.34]
[1719249349905,4.995,128.7,128.64,2.20745869]
[1719249350117,4.995,128.7,128.65,0.34]
[1719249350301,4.995,128.7,128.64,2.20745869]
[1719249350506,7.7726,128.66,128.54,46.66]
[1719249350819,4.995,128.7,128.55,46.66]
[1719249350986,7.772,128.67,128.51,30.65]
[1719249351192,12.7653,128.7,128.55,2.20900416]
[1719249351408,7.7732,128.65,128.55,2.20900416]
[1719249351714,4.995,128.7,128.55,2.20900416]
[1719249352705,24.4205,128.7,128.55,2.20900416]
[1719249352911,4.995,128.7,128.56,46.66]
[1719249353418,4.995,128.7,128.57,7.7775]
[1719249353596,4.995,128.7,128.59,30.65]
[1719249353797,0.8537789,128.77,128.58,48.86848876]
[1719249353798,0.8537789,128.77,128.69,46.66]
[1719249354192,0.8537789,128.77,128.71,46.66]
[1719249354505,0.8537789,128.9,128.77,46.66]
[1719249354713,0.8537789,128.9,128.78,0.34]
[1719249354909,7.7592,128.88,128.78,0.34]
[1719249355112,0.8537789,128.9,128.78,0.34]
[1719249355309,7.7646,128.79,128.67,46.66]
[1719249355521,7.7634,128.81,128.65,46.66]
[1719249355717,19.4049,128.84,128.65,77.73757]
[1719249355903,50.0566,128.83,128.65,31.07757]
[1719249356099,7.7646,128.79,128.62,7.7744]
[1719249356312,50.0566,128.83,128.6,79.9498563]
[1719249356313,7.7658,128.77,128.6,79.9498563]
[1719249356620,19.4096,128.81,128.6,79.9498563]
[1719249356621,7.7665,128.76,128.6,79.9498563]
[1719249357123,19.4135,128.78,128.6,79.9498563]
[1719249357824,30.99,128.79,128.6,79.9498563]
[1719249357825,30.82,128.79,128.6,79.9498563]
[1719249358117,7.7687,128.73,128.6,2.2081453]
[1719249358315,0.34,128.78,128.6,2.2081453]
[1719249358316,19.4153,128.77,128.6,2.2081453]
[1719249358516,30.65,128.75,128.6,2.2081453]
[1719249358753,7.7688,128.72,128.6,2.2081453]
[1719249358921,7.7682,128.73,128.6,2.2081453]
[1719249359106,7.769,128.72,128.6,2.2081453]
[1719249359305,7.7682,128.73,128.6,2.2081453]
[1719249359612,7.7692,128.72,128.6,2.2081453]
[1719249359920,38.4169,128.75,128.6,2.2081453]
[1719249360102,0.17,128.78,128.6,68.8681453]
[1719249360305,7.7687,128.73,128.6,68.8681453]
[1719249360508,7.7704,128.7,128.6,2.2081453]
[1719249360725,54.14,128.75,128.6,2.2081453]
[1719249360726,7.7694,128.71,128.6,2.2081453]
[1719249360904,30.65,128.75,128.6,2.2081453]
[1719249361100,19.7598,128.74,128.6,2.2081453]
[1719249361528,0.17,128.74,128.6,2.2081453]
[1719249361822,7.7657,128.78,128.61,46.66]
[1719249362002,38.8147,128.82,128.61,46.66]
[1719249362003,7.7663,128.76,128.61,46.66]
[1719249362201,7.7663,128.76,128.63,46.66]
[1719249362507,30.65,128.83,128.65,46.66]
[1719249362705,30.65,128.83,128.66,0.34]
[1719249362706,42.8974,128.82,128.66,0.34]
[1719249362908,7.7664,128.76,128.66,0.34]
[1719249363124,7.7664,128.76,128.62,2.20780194]
[1719249363125,7.7692,128.72,128.62,2.20780194]
[1719249363329,19.4113,128.8,128.63,0.17]
[1719249363626,69.4636,128.83,128.62,2.20780194]
[1719249363627,42.9036,128.78,128.62,2.20780194]
[1719249363819,7.768,128.74,128.62,2.20780194]
[1719249364023,7.7684,128.73,128.62,2.20780194]
[1719249364200,7.7682,128.73,128.62,2.20780194]
[1719249364525,19.4136,128.78,128.62,2.20780194]
[1719249364730,50.0667,128.76,128.62,2.20780194]
[1719249365024,30.65,128.71,128.62,2.20780194]
[1719249365235,19.7661,128.7,128.62,2.20780194]
[1719249365597,19.7661,128.7,128.57,3.9952758]
[1719249365813,43.2561,128.7,128.57,6.20393634]
[1719249366109,19.4288,128.68,128.57,2.20866054]
[1719249366317,7.9402,128.7,128.53,7.7799]
[1719249366518,7.7676,128.74,128.57,54.4378]
[1719249366721,3.24288724,128.81,128.61,46.66]
[1719249367026,0.7930508,128.8,128.62,66.66]
[1719249367219,0.7930508,128.8,128.66,54.4323]
[1719249367415,0.7930508,128.8,128.68,46.66]
[1719249367621,0.7930508,128.8,128.69,0.34]
[1719249368119,0.7930508,128.8,128.7,54.4298]
[1719249368425,0.7930508,128.8,128.71,0.34]
[1719249368737,0.7930508,128.8,128.62,30.65]
[1719249368903,7.7645,128.79,128.63,20.17]
[1719249369100,24.2830508,128.8,128.58,30.65]
[1719249369303,24.2830508,128.8,128.59,7.7765]
[1719249369304,7.7664,128.76,128.59,7.7765]
[1719249369519,0.17,128.79,128.6,46.66]
[1719249369728,7.7646,128.79,128.62,54.4347]
[1719249369928,0.7930508,128.8,128.62,66.0962]
[1719249370145,0.7930508,128.8,128.65,10.0]
[1719249370348,0.7930508,128.8,128.75,46.66]
[1719249370641,0.7930508,128.8,128.72,46.66]
[1719249370937,0.7930508,128.8,128.73,20.34]
[1719249371543,0.7930508,128.8,128.73,0.34]
[1719249372131,0.7930508,128.8,128.75,46.66]
[1719249372328,0.7930508,128.8,128.77,46.66]
[1719249372524,0.7930508,128.8,128.79,46.66]
[1719249372840,0.7930508,128.8,128.79,74.7645]
[1719249373027,0.8537789,128.9,128.81,46.66]
[1719249373333,0.8537789,128.9,128.82,20.34]
[1719249373543,0.8537789,128.9,128.79,46.66]
[1719249374037,0.8537789,128.9,128.83,46.66]
[1719249374338,0.8537789,128.9,128.8,50.99]
[1719249374339,0.8537789,128.9,128.87,46.66]
[1719249374514,0.8537789,128.9,128.88,67.0]
[1719249374718,0.8537789,128.9,128.89,0.17]
[1719249374921,0.8537789,129.02,128.89,0.34]
[1719249375820,0.8537789,129.02,128.92,46.66]
[1719249376137,0.8537789,129.02,128.89,0.17]
[1719249376328,7.7543,128.96,128.79,19.4113]
[1719249376643,7.7546,128.96,128.8,30.65]
[1719249376846,30.65,129.01,128.8,32.20060934]
[1719249377139,30.65,129.01,128.81,46.66]
[1719249377329,0.8537789,129.02,128.86,46.66]
[1719249377722,0.8537789,129.02,128.9,46.66]
[1719249378038,0.8537789,129.02,128.85,46.66]
[1719249378240,0.8537789,129.02,128.82,30.65]
[1719249378241,0.8537789,129.02,128.9,46.66]
[1719249378448,0.8537789,129.02,128.91,20.34]
[1719249378616,0.8537789,129.02,128.92,0.17]
[1719249378815,0.8537789,129.02,128.91,0.17]
[1719249379019,7.7516,129.01,128.91,0.17]
[1719249379246,0.8537789,129.02,128.91,0.17]
[1719249379626,0.8537789,129.02,128.92,46.66]
[1719249379945,0.8537789,129.02,128.93,20.34]
[1719249380164,0.8537789,129.02,128.94,46.66]
[1719249380323,0.8537789,129.02,128.96,46.66]
[1719249380644,0.8537789,129.02,128.97,67.0]
[1719249380826,0.8537789,129.02,128.98,0.17]
[1719249381025,0.8537789,129.02,128.99,46.66]
[1719249381232,0.8537789,129.02,129.0,2.54129834]
[1719249381626,0.8537789,129.02,129.0,2.37129834]
[1719249381847,0.8537789,129.02,129.01,0.17]
[1719249382047,0.8537789,129.02,129.01,7.9213]
[1719249382245,0.8537789,129.02,129.01,67.0]
[1719249382542,0.8537789,129.15,129.05,46.66]
[1719249382855,0.8537789,129.15,129.07,46.66]
[1719249383015,0.8537789,129.15,129.09,46.66]
[1719249383215,0.8537789,129.15,129.08,0.34]
[1719249383660,8.5970789,129.15,129.0,2.20129834]
[1719249383949,7.7435,129.14,129.0,2.20129834]
[1719249384141,0.8537789,129.15,129.01,7.7507]
[1719249384345,1e-08,129.15,129.06,66.0303]
[1719249384527,1e-08,129.15,129.08,46.66]
[1719249384723,1e-08,129.15,129.1,46.66]
[1719249384924,1e-08,129.15,129.11,20.0]
[1719249385223,1e-08,129.15,129.09,30.974096]
[1719249385434,1e-08,129.15,129.12,7.7447]
[1719249385664,1e-08,129.15,129.13,67.0]
[1719249385946,1e-08,129.15,129.14,66.66]
[1719249386158,1e-08,129.15,129.14,47.0]
[1719249386339,1e-08,129.15,129.14,67.0]
[1719249386550,0.8537789,129.27,129.14,67.0]
[1719249386736,0.8537789,129.27,129.16,46.66]
[1719249386932,0.8537789,129.27,129.17,20.17]
[1719249387132,0.8537789,129.27,129.18,0.17]
[1719249387335,0.8537789,129.27,129.16,20.0]
[1719249387556,0.8537789,129.27,129.17,0.17]
[1719249388130,0.8537789,129.27,129.16,0.17]
[1719249388429,7.737,129.25,129.1,30.65]
[1719249388621,0.8537789,129.27,129.1,50.52731014]
[1719249388821,0.8537789,129.27,129.14,30.963366]
[1719249389122,0.8537789,129.27,129.14,77.623366]
[1719249389324,0.8537789,129.27,129.14,108.273366]
[1719249389728,0.8537789,129.27,129.15,0.17]
[1719249389933,0.8537789,129.27,129.16,46.66]
[1719249390129,0.8537789,129.27,129.17,0.34]
[1719249390332,0.8537789,129.27,129.18,0.17]
[1719249390531,0.8537789,129.27,129.17,0.17]
[1719249390730,7.7369,129.26,129.14,30.963366]
[1719249390954,0.8537789,129.27,129.1,30.65]
[1719249391153,8.5900789,129.27,129.12,46.66]
[1719249391361,7.7364,129.26,129.14,46.66]
[1719249391566,0.8537789,129.27,129.16,46.66]
[1719249391729,0.8537789,129.27,129.17,20.0]
[1719249392062,0.8537789,129.27,129.1,38.3869]
[1719249392249,0.8537789,129.27,129.11,66.66]
[1719249392447,0.17,129.26,129.1,7.7369]
[1719249392672,0.17,129.26,129.0,67.48325656]
[1719249392673,61.3,129.24,129.03,7.75]
[1719249392981,0.8537789,129.27,129.05,30.65]
[1719249393150,0.8537789,129.27,129.12,46.66]
[1719249393651,38.98109078,129.47,129.11,30.65]
[1719249393652,10.0,129.5,129.22,46.66]
[1719249393852,0.8537789,129.52,129.29,46.66]
[1719249394068,30.65,129.49,129.29,46.66]
[1719249394279,30.65,129.49,129.3,0.34]
[1719249394454,30.65,129.49,129.25,77.31]
[1719249394660,30.65,129.49,129.26,0.17]
[1719249394661,6.0267,129.42,129.26,0.17]
[1719249394972,6.0267,129.42,129.27,77.31]
[1719249395181,21.2542378,129.48,129.28,20.34]
[1719249395384,21.2542378,129.48,129.34,46.66]
[1719249395385,0.9113988,129.44,129.34,46.66]
[1719249395553,0.9113988,129.44,129.35,50.99]
[1719249396173,0.9113988,129.44,129.35,0.34]
[1719249396768,0.9113988,129.44,129.36,46.66]
[1719249397081,0.9113988,129.44,129.37,0.34]
[1719249397277,0.9113988,129.44,129.37,0.17]
[1719249397461,0.9113988,129.44,129.38,0.17]
[1719249398055,0.9113988,129.44,129.33,20.0]
[1719249398292,0.9113988,129.44,129.31,39.3332]
[1719249398459,0.9113988,129.44,129.31,20.0]
[1719249398652,0.9113988,129.44,129.26,20.0]
[1719249398856,14.2451,129.4,129.26,20.0]
[1719249399092,7.7298,129.37,129.21,10.78486301]
[1719249399259,7.7298,129.37,129.19,11.11788068]
[1719249399260,7.7302,129.37,129.19,11.11788068]
[1719249399455,7.7309,129.35,129.2,46.66]
[1719249399680,19.3215,129.39,129.19,3.37748068]
[1719249399979,6.5171,129.4,129.18,30.65]
[1719249400203,7.7328,129.32,129.18,30.65]
[1719249400377,49.9763,129.36,129.14,10.78486301]
[1719249400574,0.34,129.35,129.15,46.66]
[1719249400780,0.34,129.35,129.13,46.66]
[1719249400987,45.1592,129.4,129.16,30.65]
[1719249401173,49.9747,129.37,129.17,46.66]
[1719249401380,7.7345,129.3,129.13,10.78486301]
[1719249401681,0.34,129.36,129.14,46.66]
[1719249401898,0.77938452,129.37,129.16,46.66]
[1719249402072,7.7356,129.28,129.16,46.66]
[1719249402273,7.7348,129.29,129.16,46.66]
[1719249402474,7.7351,129.28,129.16,46.66]
[1719249402691,19.3318,129.33,129.12,30.65]
[1719249402876,6.4571,129.28,129.11,37.75]
[1719249403294,7.7363,129.27,129.11,37.75]
[1719249403510,6.4571,129.28,129.11,87.7632]
[1719249403671,6.4571,129.28,129.14,46.66]
[1719249403870,6.4571,129.28,129.11,37.75]
[1719249404076,7.7381,129.23,129.07,3.97979864]
[1719249404273,14.1927,129.28,129.1,19.3645]
[1719249404495,7.7371,129.25,129.07,14.76466165]
[1719249404702,7.7376,129.24,129.08,46.66]
[1719249404907,19.3393,129.27,129.08,46.66]
[1719249405202,19.3393,129.27,129.08,54.4069]
[1719249405203,30.65,129.27,129.08,54.4069]
[1719249405399,7.7371,129.25,129.1,46.66]
[1719249405610,7.7371,129.25,129.11,66.66]
[1719249405783,7.7375,129.24,129.11,46.66]
[1719249405987,7.7393,129.21,129.09,20.0]
[1719249406298,19.3411,129.26,129.09,20.0]
[1719249406299,7.74,129.2,129.09,20.0]
[1719249406479,69.3314,129.27,129.07,3.97979864]
[1719249406480,7.7408,129.19,129.07,3.97979864]
[1719249406684,7.7416,129.18,129.07,3.97979864]
[1719249406880,19.345,129.24,129.07,3.97979864]
[1719249406881,6.1774,129.16,129.07,3.97979864]
[1719249408401,36.8274,129.16,129.07,3.97979864]
[1719249408611,7.7448,129.12,129.07,3.97979864]
[1719249408782,0.17,129.15,129.07,3.97979864]
[1719249408981,36.8274,129.16,129.0,2.20129834]
[1719249409182,0.17,129.15,129.0,2.20129834]
[1719249409396,7.7457,129.11,129.0,2.20129834]
[1719249409601,7.7457,129.11,128.99,46.66]
[1719249410201,7.746,129.1,128.97,30.998149]
[1719249410417,19.36,129.14,128.96,46.66]
[1719249410585,0.17,129.13,128.96,77.66387]
[1719249410901,30.99,129.13,128.96,31.00387]
[1719249411106,30.65,129.08,128.94,3.98381115]
[1719249411284,7.752,129.0,128.94,3.98381115]
[1719249411486,7.7519,129.0,128.94,3.98381115]
[1719249411703,7.7506,129.03,128.94,3.98381115]
[1719249411915,30.65,129.04,128.94,3.98381115]
[1719249412110,7.7501,129.03,128.94,3.98381115]
[1719249412301,30.65,129.04,128.94,3.98381115]
[1719249412302,0.17,129.02,128.94,3.98381115]
[1719249412610,61.3,129.06,128.94,3.98381115]
[1719249412905,7.7523,129.0,128.84,30.65]
[1719249413091,7.7535,128.98,128.81,23.39603177]
[1719249413405,30.65,129.03,128.82,3.9875222]
[1719249413406,7.7538,128.97,128.82,3.9875222]
[1719249413619,0.17,129.01,128.82,3.9875222]
[1719249413620,7.7525,128.99,128.82,3.9875222]
[1719249413790,0.34,129.01,128.82,3.9875222]
[1719249413987,21.7824,129.07,128.88,7.7588]
[1719249414203,7.7509,129.02,128.86,19.3997]
[1719249414413,30.65,129.01,128.83,3.98721268]
[1719249414797,0.17,129.0,128.83,6.19141578]
[1719249414999,7.7547,128.96,128.83,3.98721268]
[1719249415313,0.17,129.0,128.83,3.98721268]
[1719249415518,7.7531,128.99,128.83,3.98721268]
[1719249415692,0.17,129.0,128.83,3.98721268]
[1719249415890,7.7538,128.97,128.83,3.98721268]
[1719249416090,0.34,129.0,128.83,3.98721268]
[1719249416293,7.757,128.92,128.8,68.985192]
[1719249416801,7.7573,128.91,128.8,37.95]
[1719249417001,7.7574,128.91,128.77,3.98907051]
[1719249417202,21.7444,128.95,128.77,3.98907051]
[1719249417383,7.7581,128.9,128.77,3.98907051]
[1719249417585,19.7297,128.94,128.74,30.65]
[1719249418012,0.34,128.94,128.74,30.65]
[1719249418306,7.756,128.94,128.76,7.766]
[1719249418611,7.756,128.94,128.77,7.7657]
[1719249418612,7.7556,128.94,128.77,7.7657]
[1719249418832,7.7556,128.94,128.75,66.0767]
[1719249418833,7.7563,128.93,128.75,66.0767]
[1719249418991,21.7444,128.95,128.75,19.4167]
[1719249419191,21.7444,128.95,128.77,19.4137]
[1719249419509,7.7556,128.94,128.78,20.0]
[1719249419712,7.7561,128.93,128.79,45.17]
[1719249419903,21.7444,128.95,128.8,20.17]
[1719249420109,21.7444,128.95,128.81,45.17]
[1719249420306,21.7444,128.95,128.82,0.17]
[1719249420490,21.7444,128.95,128.82,20.17]
[1719249420701,7.7579,128.9,128.78,30.65]
[1719249421008,52.3944,128.95,128.79,20.0]
[1719249421525,21.7444,128.95,128.78,107.31]
[1719249421705,6.1056,128.95,128.78,30.65]
[1719249421906,7.7565,128.93,128.79,20.0]
[1719249422208,6.1056,128.95,128.8,45.17]
[1719249422520,6.4642,129.0,128.81,50.65]
[1719249422695,6.4642,129.0,128.82,19.44158191]
[1719249422890,14.2128,129.06,128.89,7.7582]
[1719249423090,6.4642,129.06,128.9,20.17]
[1719249423295,25.8362,129.06,128.9,0.17]
[1719249423593,6.4642,129.06,128.9,0.17]
[1719249423907,30.65,129.03,128.89,0.17]
[1719249424430,14.2131,129.06,128.89,7.9284]
[1719249424627,6.4642,129.06,128.9,20.17]
[1719249424794,7.7454,129.11,128.94,7.755]
[1719249424992,7.7454,129.11,128.93,30.65]
[1719249424993,7.7465,129.09,128.95,20.34]
[1719249425210,25.9687,129.13,128.95,20.34]
[1719249425410,14.3516,129.13,128.96,7.7542]
[1719249425616,6.6075,129.13,128.97,20.34]
[1719249425822,6.6075,129.13,128.97,0.17]
[1719249426203,7.7469,129.09,128.96,0.17]
[1719249426615,6.6075,129.13,128.96,0.17]
[1719249426808,7.7467,129.09,128.95,0.34]
[1719249426994,7.7454,129.11,128.95,0.34]
[1719249427194,6.6075,129.13,128.95,0.34]
[1719249427414,45.329,129.13,128.95,0.34]
[1719249427617,19.3655,129.1,128.87,30.65]
[1719249427930,7.7495,129.04,128.87,57.73183805]
[1719249428215,30.65,129.07,128.87,30.65]
[1719249428516,7.7519,129.0,128.83,7.762]
[1719249428721,52.6857,129.03,128.82,30.65]
[1719249429023,7.7517,129.01,128.84,7.7614]
[1719249429326,22.0357,129.03,128.84,66.97767263]
[1719249429516,6.5981,129.08,128.87,30.65]
[1719249429717,0.17,129.07,128.87,30.65]
[1719249430020,0.17,129.07,128.82,30.65]
[1719249430021,7.7542,128.97,128.82,30.65]
[1719249430323,19.3806,129.0,128.82,30.65]
[1719249430512,7.7556,128.94,128.81,37.95]
[1719249430720,19.3835,128.98,128.81,37.95]
[1719249431023,6.5981,128.97,128.79,3.52874644]
[1719249431201,6.5981,128.97,128.79,46.66]
[1719249431402,0.34,128.96,128.79,46.66]
[1719249431595,30.82,128.96,128.76,30.65]
[1719249431794,30.82,128.96,128.74,30.65]
[1719249431795,19.5582,128.95,128.74,30.65]
[1719249431995,7.758,128.9,128.74,30.65]
[1719249432218,19.5582,128.95,128.74,30.65]
[1719249432435,7.9253,128.95,128.76,19.4149]
[1719249432597,7.7556,128.94,128.77,7.7657]
[1719249432797,7.7548,128.96,128.78,19.4116]
[1719249432998,6.5981,128.97,128.78,66.0716]
[1719249433198,6.5981,128.97,128.81,77.31]
[1719249433419,6.5981,128.97,128.78,10.77041857]
[1719249433631,6.5981,128.97,128.77,30.65]
[1719249433811,6.5981,128.97,128.78,20.0]
[1719249434121,7.7555,128.94,128.78,20.0]
[1719249434420,16.1905,128.98,128.83,7.7617]
[1719249434608,16.1905,128.98,128.81,30.65]
[1719249434810,23.944,128.98,128.82,0.17]
[1719249434999,7.7537,128.97,128.82,20.17]
[1719249435296,16.1905,128.98,128.82,20.0]
[1719249435497,16.1905,128.98,128.77,23.40327051]
[1719249435726,16.1905,128.98,128.77,3.98907051]
[1719249435727,54.31,128.97,128.77,3.98907051]
[1719249436019,19.3881,128.95,128.77,3.98907051]
[1719249436351,7.7579,128.9,128.74,30.65]
[1719249436500,6.4811,128.92,128.74,30.65]
[1719249436699,7.7602,128.87,128.72,3.99062003]
[1719249436921,43.224,128.91,128.72,3.99062003]
[1719249437146,30.65,128.89,128.72,11.75082003]
[1719249437416,16.2986,128.88,128.72,11.75082003]
[1719249437637,19.4001,128.87,128.67,3.99217075]
[1719249437938,0.17,128.86,128.68,19.4317]
[1719249438114,35.6978,128.88,128.68,19.4317]
[1719249438314,35.6978,128.88,128.67,3.99217075]
[1719249438315,30.65,128.85,128.67,3.99217075]
[1719249438511,7.764,128.8,128.67,3.99217075]
[1719249438741,7.7645,128.8,128.67,3.99217075]
[1719249438922,30.65,128.85,128.67,3.99217075]
[1719249439139,29.3796,129.03,128.67,3.99217075]
[1719249439140,6.4688,128.97,128.81,7.7628]
[1719249439317,6.4688,128.97,128.76,77.31]
[1719249439318,14.2229,128.97,128.8,27.1724]
[1719249439515,14.2229,128.97,128.77,66.0737]
[1719249439516,7.7545,128.96,128.77,66.0737]
[1719249439712,6.4688,128.97,128.79,19.4106]
[1719249439938,7.7551,128.95,128.79,19.4106]
[1719249440235,7.7584,128.9,128.76,30.65]
[1719249440446,7.7574,128.91,128.77,20.17]
[1719249440752,38.772,128.96,128.77,20.0]
[1719249440917,38.772,128.96,128.75,20.0]
[1719249441239,19.3899,128.94,128.75,20.0]
[1719249441421,30.99,128.93,128.72,20.0]
[1719249441624,38.4062,128.93,128.75,19.4167]
[1719249441943,19.3864,128.96,128.76,20.17]
[1719249442244,7.7562,128.93,128.77,0.17]
[1719249442425,7.7582,128.9,128.77,0.17]
[1719249442630,19.3864,128.96,128.77,0.17]
[1719249442938,7.7563,128.93,128.76,7.7662]
[1719249443144,6.4688,128.97,128.78,30.65]
[1719249443318,7.7561,128.93,128.79,20.0]
[1719249443515,6.4688,128.97,128.79,20.0]
[1719249443516,7.7553,128.95,128.79,20.0]
[1719249443720,25.8539,128.97,128.79,20.0]
[1719249443926,7.7574,128.91,128.77,20.0]
[1719249444220,19.388,128.95,128.78,0.17]
[1719249444436,7.7572,128.92,128.78,0.17]
[1719249444743,7.7575,128.91,128.78,0.17]
[1719249444954,7.755,128.95,128.78,7.935]
[1719249445121,6.4688,128.97,128.79,27.7645]
[1719249445320,7.7549,128.95,128.8,0.17]
[1719249445536,6.4688,128.97,128.81,30.65]
[1719249445733,6.4688,128.97,128.82,20.17]
[1719249446044,6.4688,128.97,128.82,27.9325]
[1719249446258,6.4688,128.97,128.83,0.17]
[1719249446542,7.7544,128.96,128.82,20.17]
[1719249446839,6.4688,128.97,128.82,20.17]
[1719249447039,7.7544,128.96,128.82,20.17]
[1719249447241,7.756,128.94,128.82,20.0]
[1719249447433,7.7545,128.96,128.82,20.0]
[1719249447636,14.2226,128.97,128.83,0.17]
[1719249447954,14.2226,128.97,128.83,0.34]
[1719249447955,6.4688,128.97,128.83,0.34]
[1719249448326,6.4688,128.97,128.82,20.0]
[1719249448626,7.7549,128.95,128.82,20.0]
[1719249449142,7.7544,128.96,128.82,20.0]
[1719249449327,6.6388,128.97,128.82,20.0]
[1719249449640,7.7552,128.95,128.82,36.1491]
[1719249449831,0.34,128.96,128.82,36.1491]